[Event "*** Titled Tuesday Blitz"]
[Site "Chess.com"]
[Date "2021.04.06"]
[Round "8"]
[White "VladaSviridova"]
[Black "akanga001"]
[Result "1-0"]
[WhiteElo "2230"]
[BlackElo "2038"]
[TimeControl "180+1"]
[EndTime "11:28:24 PDT"]
[Termination "VladaSviridova won by checkmate"]

1. d4 {[%clk 0:03:00.9]} 1... Nf6 {[%clk 0:02:59]} 2. c4 {[%clk 0:03:00.1]} 2...
b6 {[%clk 0:02:58.9]} 3. Nc3 {[%clk 0:02:58.2]} 3... Bb7 {[%clk 0:02:58.8]} 4.
d5 {[%clk 0:02:57]} 4... d6 {[%clk 0:02:57.6]} 5. e4 {[%clk 0:02:56.8]} 5... g6
{[%clk 0:02:57.6]} 6. Nf3 {[%clk 0:02:56.2]} 6... Nbd7 {[%clk 0:02:57.4]} 7. Bd3
{[%clk 0:02:55.4]} 7... Bg7 {[%clk 0:02:56.8]} 8. O-O {[%clk 0:02:55.3]} 8...
O-O {[%clk 0:02:56.6]} 9. Re1 {[%clk 0:02:52.6]} 9... c5 {[%clk 0:02:56.3]} 10.
h3 {[%clk 0:02:43.2]} 10... a6 {[%clk 0:02:56]} 11. a4 {[%clk 0:02:42.8]} 11...
Qc7 {[%clk 0:02:55.2]} 12. Be3 {[%clk 0:02:40.5]} 12... e6 {[%clk 0:02:54.8]}
13. Qd2 {[%clk 0:02:00.5]} 13... Rae8 {[%clk 0:02:52.7]} 14. Bh6 {[%clk
0:01:58.6]} 14... exd5 {[%clk 0:02:48.4]} 15. exd5 {[%clk 0:01:46]} 15... Rxe1+
{[%clk 0:02:25.7]} 16. Rxe1 {[%clk 0:01:40.9]} 16... Re8 {[%clk 0:02:24.5]} 17.
Bxg7 {[%clk 0:01:35.2]} 17... Kxg7 {[%clk 0:02:24]} 18. Rxe8 {[%clk 0:01:24.5]}
18... Nxe8 {[%clk 0:02:23]} 19. Qe3 {[%clk 0:01:24.4]} 19... Ndf6 {[%clk
0:02:21.1]} 20. g4 {[%clk 0:01:15.7]} 20... h6 {[%clk 0:02:19.9]} 21. Ne2 {[%clk
0:00:43.4]} 21... b5 {[%clk 0:02:12.7]} 22. axb5 {[%clk 0:00:41.8]} 22... axb5
{[%clk 0:02:12.3]} 23. b3 {[%clk 0:00:41.2]} 23... bxc4 {[%clk 0:02:10.5]} 24.
bxc4 {[%clk 0:00:41]} 24... Bc8 {[%clk 0:02:03.7]} 25. Ng3 {[%clk 0:00:39.7]}
25... Qa5 {[%clk 0:01:49.5]} 26. Kg2 {[%clk 0:00:29.5]} 26... Qc3 {[%clk
0:01:42]} 27. Ne2 {[%clk 0:00:21.3]} 27... Qb3 {[%clk 0:01:31.2]} 28. Nf4 {[%clk
0:00:19.9]} 28... Bd7 {[%clk 0:01:22.5]} 29. g5 {[%clk 0:00:15.2]} 29... hxg5
{[%clk 0:01:21.5]} 30. Nxg5 {[%clk 0:00:15.5]} 30... Qb2 {[%clk 0:00:56.6]} 31.
Qe7 {[%clk 0:00:14.3]} 31... Qe5 {[%clk 0:00:55.9]} 32. Qxf7+ {[%clk 0:00:13.8]}
32... Kh6 {[%clk 0:00:54.5]} 33. Qxg6# {[%clk 0:00:07.3]} 1-0

[Event "*** Titled Tuesday Blitz"]
[Site "Chess.com"]
[Date "2021.04.06"]
[Round "8"]
[White "Willhaven3"]
[Black "DinaBelenkaya"]
[Result "1-0"]
[WhiteElo "2510"]
[BlackElo "2360"]
[TimeControl "180+1"]
[EndTime "11:28:25 PDT"]
[Termination "Willhaven3 won on time"]

1. d4 {[%clk 0:03:00.9]} 1... Nf6 {[%clk 0:02:58.4]} 2. Nf3 {[%clk 0:03:01.8]}
2... d5 {[%clk 0:02:46.7]} 3. c4 {[%clk 0:03:01.6]} 3... dxc4 {[%clk 0:02:45.7]}
4. Qa4+ {[%clk 0:02:58.9]} 4... Nbd7 {[%clk 0:02:40.8]} 5. Qxc4 {[%clk
0:02:59.2]} 5... c6 {[%clk 0:02:41]} 6. Bf4 {[%clk 0:02:55.3]} 6... Nb6 {[%clk
0:02:40.8]} 7. Qc2 {[%clk 0:02:54.6]} 7... g6 {[%clk 0:02:40.4]} 8. e3 {[%clk
0:02:52.5]} 8... Bf5 {[%clk 0:02:39]} 9. Bd3 {[%clk 0:02:52.5]} 9... Bxd3 {[%clk
0:02:38.7]} 10. Qxd3 {[%clk 0:02:53.4]} 10... Bg7 {[%clk 0:02:39.3]} 11. O-O
{[%clk 0:02:52.1]} 11... O-O {[%clk 0:02:38.2]} 12. Rc1 {[%clk 0:02:50.9]} 12...
a5 {[%clk 0:02:31.6]} 13. Nbd2 {[%clk 0:02:49.8]} 13... a4 {[%clk 0:02:29.9]}
14. b4 {[%clk 0:02:41.4]} 14... Nbd5 {[%clk 0:02:26.2]} 15. Be5 {[%clk 0:02:35]}
15... Nxb4 {[%clk 0:02:25.3]} 16. Qb1 {[%clk 0:02:34.8]} 16... Qa5 {[%clk
0:01:50.2]} 17. a3 {[%clk 0:02:26.6]} 17... Nbd5 {[%clk 0:01:35.6]} 18. Qxb7
{[%clk 0:02:19.7]} 18... Ra6 {[%clk 0:00:18.8]} 19. Rxc6 {[%clk 0:02:01]} 19...
Rxc6 {[%clk 0:00:19.7]} 20. Qxc6 {[%clk 0:02:01.1]} 20... e6 {[%clk 0:00:19.9]}
21. Rc1 {[%clk 0:01:47.1]} 21... Ra8 {[%clk 0:00:08]} 22. Nc4 {[%clk 0:01:38.3]}
22... Qa7 {[%clk 0:00:07.7]} 23. Nd6 {[%clk 0:01:27.5]} 23... Ne8 {[%clk
0:00:06.7]} 24. Nxe8 {[%clk 0:01:26.5]} 24... Rxe8 {[%clk 0:00:07.6]} 25. Qxe8+
{[%clk 0:01:26.2]} 25... Bf8 {[%clk 0:00:07.1]} 26. Rc8 {[%clk 0:01:24.2]} 26...
Qe7 {[%clk 0:00:04.7]} 27. e4 {[%clk 0:01:00.5]} 27... Qxa3 {[%clk 0:00:03.8]}
28. h4 {[%clk 0:00:50.6]} 28... Nf4 {[%clk 0:00:01.8]} 29. Bxf4 {[%clk
0:00:49.8]} 29... Qa1+ {[%clk 0:00:02]} 30. Kh2 {[%clk 0:00:48.7]} 30... Qa3
{[%clk 0:00:02.9]} 31. Bh6 {[%clk 0:00:47.6]} 1-0

[Event "*** Titled Tuesday Blitz"]
[Site "Chess.com"]
[Date "2021.04.06"]
[Round "8"]
[White "ukchessbomber"]
[Black "PchelkinVK"]
[Result "1-0"]
[WhiteElo "2497"]
[BlackElo "2576"]
[TimeControl "180+1"]
[EndTime "11:28:26 PDT"]
[Termination "ukchessbomber won on time"]

1. d4 {[%clk 0:03:00.9]} 1... Nc6 {[%clk 0:02:58.2]} 2. c4 {[%clk 0:03:00.1]}
2... e5 {[%clk 0:02:58.2]} 3. dxe5 {[%clk 0:02:56.7]} 3... Nxe5 {[%clk
0:02:57.3]} 4. e4 {[%clk 0:02:57.6]} 4... Bc5 {[%clk 0:02:55.6]} 5. Nc3 {[%clk
0:02:54.9]} 5... Nf6 {[%clk 0:02:52.3]} 6. h3 {[%clk 0:02:51.5]} 6... O-O {[%clk
0:02:47.2]} 7. f4 {[%clk 0:02:51.7]} 7... Nc6 {[%clk 0:02:24.7]} 8. Be2 {[%clk
0:02:45.1]} 8... Re8 {[%clk 0:02:21.2]} 9. e5 {[%clk 0:02:44.6]} 9... d6 {[%clk
0:02:11.6]} 10. exf6 {[%clk 0:02:37]} 10... Qxf6 {[%clk 0:02:11.5]} 11. Nf3
{[%clk 0:02:29.3]} 11... Nd4 {[%clk 0:02:11.4]} 12. Nxd4 {[%clk 0:02:23.8]}
12... Bxd4 {[%clk 0:02:04.8]} 13. Qd3 {[%clk 0:02:24.2]} 13... Bf5 {[%clk
0:02:02.7]} 14. Qf3 {[%clk 0:02:08.6]} 14... c6 {[%clk 0:01:34.6]} 15. g4 {[%clk
0:01:54.2]} 15... Bxc3+ {[%clk 0:01:31.8]} 16. Qxc3 {[%clk 0:01:47]} 16... Qh4+
{[%clk 0:01:22.9]} 17. Kf1 {[%clk 0:01:42.2]} 17... Rxe2 {[%clk 0:01:11.5]} 18.
Kxe2 {[%clk 0:01:39.9]} 18... Bxg4+ {[%clk 0:01:00.7]} 19. Kf1 {[%clk 0:01:17]}
19... Re8 {[%clk 0:00:57.1]} 20. Bd2 {[%clk 0:00:50]} 20... Re2 {[%clk
0:00:12.1]} 21. Be1 {[%clk 0:00:39]} 21... Qh5 {[%clk 0:00:03.9]} 22. hxg4
{[%clk 0:00:36.1]} 22... Rxe1+ {[%clk 0:00:03.7]} 23. Rxe1 {[%clk 0:00:35.7]}
23... Qxh1+ {[%clk 0:00:04.2]} 24. Ke2 {[%clk 0:00:36.4]} 24... Qg2+ {[%clk
0:00:02.4]} 25. Kd3 {[%clk 0:00:35.9]} 25... Qg3+ {[%clk 0:00:01.4]} 26. Kc2
{[%clk 0:00:35.9]} 1-0

[Event "*** Titled Tuesday Blitz"]
[Site "Chess.com"]
[Date "2021.04.06"]
[Round "8"]
[White "kallerotmg"]
[Black "dpopadic"]
[Result "1/2-1/2"]
[WhiteElo "2101"]
[BlackElo "2297"]
[TimeControl "180+1"]
[EndTime "11:28:26 PDT"]
[Termination "Game drawn by agreement"]

1. d4 {[%clk 0:02:58.5]} 1... Nf6 {[%clk 0:02:59.9]} 2. Nf3 {[%clk 0:02:56.1]}
2... g6 {[%clk 0:02:59.9]} 3. c4 {[%clk 0:02:48.2]} 3... Bg7 {[%clk 0:02:59.9]}
4. Nc3 {[%clk 0:02:41.9]} 4... d6 {[%clk 0:02:59.1]} 5. e4 {[%clk 0:02:41.1]}
5... O-O {[%clk 0:02:58.7]} 6. h3 {[%clk 0:02:40.1]} 6... e5 {[%clk 0:02:58.5]}
7. Be2 {[%clk 0:02:37.9]} 7... Na6 {[%clk 0:02:57.3]} 8. d5 {[%clk 0:02:35.2]}
8... Nc5 {[%clk 0:02:56.7]} 9. Nd2 {[%clk 0:02:35.2]} 9... a5 {[%clk 0:02:57.2]}
10. b3 {[%clk 0:02:31.9]} 10... c6 {[%clk 0:02:56.9]} 11. O-O {[%clk 0:02:30.9]}
11... cxd5 {[%clk 0:02:55.7]} 12. cxd5 {[%clk 0:02:31.7]} 12... Bd7 {[%clk
0:02:50.9]} 13. Nc4 {[%clk 0:02:10.7]} 13... Ncxe4 {[%clk 0:02:44.6]} 14. Nxe4
{[%clk 0:02:08.3]} 14... Nxe4 {[%clk 0:02:44.8]} 15. Bf3 {[%clk 0:02:05.1]}
15... Nc3 {[%clk 0:02:29]} 16. Qc2 {[%clk 0:01:48.3]} 16... e4 {[%clk
0:02:27.2]} 17. Bb2 {[%clk 0:01:24.4]} 17... exf3 {[%clk 0:02:18.4]} 18. Bxc3
{[%clk 0:01:22.2]} 18... Bxc3 {[%clk 0:02:15.3]} 19. Qxc3 {[%clk 0:01:22.2]}
19... fxg2 {[%clk 0:02:14]} 20. Kxg2 {[%clk 0:01:23.1]} 20... Rc8 {[%clk
0:02:02]} 21. Qg3 {[%clk 0:01:18.8]} 21... Bb5 {[%clk 0:02:00.1]} 22. Rfc1
{[%clk 0:01:10.3]} 22... Bxc4 {[%clk 0:01:59]} 23. bxc4 {[%clk 0:01:09.6]} 23...
Qd7 {[%clk 0:01:48.7]} 24. Rab1 {[%clk 0:01:08.2]} 24... Rc7 {[%clk 0:01:48.6]}
25. Rb5 {[%clk 0:00:59.1]} 25... a4 {[%clk 0:01:26.8]} 26. Rb6 {[%clk
0:00:57.3]} 26... Rd8 {[%clk 0:01:25.3]} 27. Qf4 {[%clk 0:00:52.2]} 27... Qe7
{[%clk 0:01:12.8]} 28. Rc3 {[%clk 0:00:36.4]} 28... Qd7 {[%clk 0:00:49.4]} 29.
Re3 {[%clk 0:00:25.3]} 29... h5 {[%clk 0:00:40.3]} 30. Qf6 {[%clk 0:00:20.5]}
1/2-1/2

[Event "*** Titled Tuesday Blitz"]
[Site "Chess.com"]
[Date "2021.04.06"]
[Round "8"]
[White "Susik_Gaboyan"]
[Black "catzapto"]
[Result "0-1"]
[WhiteElo "2249"]
[BlackElo "2088"]
[TimeControl "180+1"]
[EndTime "11:28:27 PDT"]
[Termination "catzapto won on time"]

1. Nf3 {[%clk 0:02:54.9]} 1... c5 {[%clk 0:03:00.5]} 2. g3 {[%clk 0:02:55.8]}
2... Nc6 {[%clk 0:02:59.9]} 3. d3 {[%clk 0:02:56.7]} 3... Nf6 {[%clk 0:02:59.8]}
4. Bg2 {[%clk 0:02:57.6]} 4... d6 {[%clk 0:03:00.4]} 5. O-O {[%clk 0:02:58.5]}
5... g6 {[%clk 0:03:01]} 6. Nc3 {[%clk 0:02:59.4]} 6... Bg7 {[%clk 0:03:01.7]}
7. e3 {[%clk 0:03:00.3]} 7... O-O {[%clk 0:03:02.4]} 8. d4 {[%clk 0:03:00.6]}
8... e5 {[%clk 0:02:52]} 9. dxc5 {[%clk 0:02:55.4]} 9... dxc5 {[%clk 0:02:51]}
10. Qxd8 {[%clk 0:02:53.5]} 10... Rxd8 {[%clk 0:02:50.1]} 11. e4 {[%clk
0:02:54]} 11... Bg4 {[%clk 0:02:41.1]} 12. Bg5 {[%clk 0:02:51.1]} 12... Bxf3
{[%clk 0:02:37.3]} 13. Bxf3 {[%clk 0:02:48.3]} 13... Nd4 {[%clk 0:02:37.7]} 14.
Bd1 {[%clk 0:02:07.7]} 14... h6 {[%clk 0:02:37.3]} 15. Bxf6 {[%clk 0:02:07]}
15... Bxf6 {[%clk 0:02:38.2]} 16. Nd5 {[%clk 0:02:06.9]} 16... Kg7 {[%clk
0:02:35.2]} 17. c3 {[%clk 0:02:05]} 17... Nc6 {[%clk 0:02:34.6]} 18. Ba4 {[%clk
0:01:57.9]} 18... Ne7 {[%clk 0:02:32]} 19. Bb3 {[%clk 0:01:12.2]} 19... Nxd5
{[%clk 0:02:19.1]} 20. Bxd5 {[%clk 0:01:13.1]} 20... Rab8 {[%clk 0:02:17.2]} 21.
a4 {[%clk 0:00:57.8]} 21... Be7 {[%clk 0:02:06.8]} 22. a5 {[%clk 0:00:55.3]}
22... a6 {[%clk 0:01:58.2]} 23. Rfd1 {[%clk 0:00:28.1]} 23... f5 {[%clk
0:01:57.9]} 24. Kg2 {[%clk 0:00:26.2]} 24... Kf6 {[%clk 0:01:56.8]} 25. Rd3
{[%clk 0:00:12.6]} 25... b5 {[%clk 0:01:47.7]} 26. axb6 {[%clk 0:00:11.5]} 26...
Rxb6 {[%clk 0:01:47.5]} 27. Ra2 {[%clk 0:00:06.8]} 27... Rdb8 {[%clk 0:01:45.7]}
28. Rd2 {[%clk 0:00:06]} 28... a5 {[%clk 0:01:24.4]} 29. Rxa5 {[%clk 0:00:02.9]}
29... Rxb2 {[%clk 0:01:24.3]} 30. Rxb2 {[%clk 0:00:03]} 30... Rxb2 {[%clk
0:01:23.8]} 31. Ra6+ {[%clk 0:00:03.6]} 31... Kg7 {[%clk 0:01:17.1]} 32. Ra7
{[%clk 0:00:03.7]} 32... Kf6 {[%clk 0:01:14.5]} 33. Ra6+ {[%clk 0:00:02.4]}
33... Kg7 {[%clk 0:01:14.8]} 34. c4 {[%clk 0:00:02.4]} 34... Bg5 {[%clk
0:00:58]} 0-1

[Event "*** Titled Tuesday Blitz"]
[Site "Chess.com"]
[Date "2021.04.06"]
[Round "8"]
[White "Kotofeyca"]
[Black "NishaOnYoutube"]
[Result "0-1"]
[WhiteElo "2378"]
[BlackElo "2288"]
[TimeControl "180+1"]
[EndTime "11:28:28 PDT"]
[Termination "NishaOnYoutube won by checkmate"]

1. d4 {[%clk 0:03:00.9]} 1... f5 {[%clk 0:02:59.2]} 2. Nc3 {[%clk 0:03:00.3]}
2... d5 {[%clk 0:02:57.2]} 3. Bg5 {[%clk 0:02:58.4]} 3... g6 {[%clk 0:02:54]} 4.
e3 {[%clk 0:02:57]} 4... Bg7 {[%clk 0:02:53.3]} 5. f4 {[%clk 0:02:53]} 5... c6
{[%clk 0:02:49.1]} 6. Nf3 {[%clk 0:02:52.9]} 6... Nf6 {[%clk 0:02:44.9]} 7. Bd3
{[%clk 0:02:49.6]} 7... Ne4 {[%clk 0:02:40.3]} 8. Bh4 {[%clk 0:02:48.4]} 8...
O-O {[%clk 0:02:35.6]} 9. O-O {[%clk 0:02:47.9]} 9... Kh8 {[%clk 0:02:34.2]} 10.
Ne2 {[%clk 0:02:43.9]} 10... Be6 {[%clk 0:02:32.5]} 11. b3 {[%clk 0:02:40.7]}
11... Nd7 {[%clk 0:02:29.6]} 12. c4 {[%clk 0:02:40.3]} 12... Bg8 {[%clk
0:02:14.4]} 13. Qc2 {[%clk 0:02:37.7]} 13... Rc8 {[%clk 0:02:09.9]} 14. c5
{[%clk 0:02:35.8]} 14... b6 {[%clk 0:02:01.6]} 15. b4 {[%clk 0:02:32.6]} 15...
Re8 {[%clk 0:01:51.8]} 16. a4 {[%clk 0:02:21.5]} 16... bxc5 {[%clk 0:01:37.4]}
17. bxc5 {[%clk 0:02:18.9]} 17... a5 {[%clk 0:01:36]} 18. Rab1 {[%clk
0:02:13.5]} 18... Rb8 {[%clk 0:01:36.1]} 19. Rxb8 {[%clk 0:01:32.7]} 19... Qxb8
{[%clk 0:01:34.6]} 20. Rb1 {[%clk 0:01:33.6]} 20... Qc7 {[%clk 0:01:34.3]} 21.
Rb3 {[%clk 0:01:24.6]} 21... e6 {[%clk 0:01:31.2]} 22. Qb2 {[%clk 0:01:12.5]}
22... Ndxc5 {[%clk 0:01:29.1]} 23. Ra3 {[%clk 0:00:56.2]} 23... Nxd3 {[%clk
0:01:27.9]} 24. Rxd3 {[%clk 0:00:56.3]} 24... c5 {[%clk 0:01:25.5]} 25. Rb3
{[%clk 0:00:41.8]} 25... c4 {[%clk 0:01:20.3]} 26. Rb7 {[%clk 0:00:41.6]} 26...
Qc6 {[%clk 0:01:19.9]} 27. Qb5 {[%clk 0:00:28.5]} 27... Qxb5 {[%clk 0:01:08.2]}
28. axb5 {[%clk 0:00:29.4]} 28... Rc8 {[%clk 0:01:05.9]} 29. b6 {[%clk
0:00:25.6]} 29... Nd6 {[%clk 0:00:57.2]} 30. Rc7 {[%clk 0:00:20.2]} 30... Rb8
{[%clk 0:00:56.2]} 31. Be7 {[%clk 0:00:17.4]} 31... Rxb6 {[%clk 0:00:53.6]} 32.
Ne5 {[%clk 0:00:15.7]} 32... Rb1+ {[%clk 0:00:49.1]} 33. Kf2 {[%clk 0:00:14.7]}
33... Ne4+ {[%clk 0:00:50]} 34. Kf3 {[%clk 0:00:10.5]} 34... Rf1# {[%clk
0:00:49.6]} 0-1

[Event "*** Titled Tuesday Blitz"]
[Site "Chess.com"]
[Date "2021.04.06"]
[Round "8"]
[White "Chandradi"]
[Black "rachidhuilda"]
[Result "1-0"]
[WhiteElo "2387"]
[BlackElo "2265"]
[TimeControl "180+1"]
[EndTime "11:28:28 PDT"]
[Termination "Chandradi won on time"]

1. c4 {[%clk 0:03:00.9]} 1... c6 {[%clk 0:02:56.5]} 2. Nf3 {[%clk 0:02:59.8]}
2... d5 {[%clk 0:02:51]} 3. g3 {[%clk 0:03:00]} 3... Nf6 {[%clk 0:02:49.8]} 4.
Bg2 {[%clk 0:02:59.4]} 4... Bf5 {[%clk 0:02:50]} 5. cxd5 {[%clk 0:02:58.5]} 5...
cxd5 {[%clk 0:02:48.1]} 6. Qb3 {[%clk 0:02:59]} 6... Qb6 {[%clk 0:02:47.2]} 7.
Qxb6 {[%clk 0:02:57.8]} 7... axb6 {[%clk 0:02:46.9]} 8. Nc3 {[%clk 0:02:57.5]}
8... e6 {[%clk 0:02:46.7]} 9. d3 {[%clk 0:02:55.4]} 9... Nc6 {[%clk 0:02:41.7]}
10. Be3 {[%clk 0:02:53.9]} 10... Bc5 {[%clk 0:02:35.7]} 11. Bd2 {[%clk
0:02:47.7]} 11... O-O {[%clk 0:02:31.6]} 12. O-O {[%clk 0:02:46]} 12... h6
{[%clk 0:02:22.5]} 13. a3 {[%clk 0:02:45.9]} 13... Rfc8 {[%clk 0:02:20.6]} 14.
b4 {[%clk 0:02:45.9]} 14... Be7 {[%clk 0:02:10.8]} 15. Nb5 {[%clk 0:02:46.2]}
15... Nd7 {[%clk 0:02:05.5]} 16. Rac1 {[%clk 0:02:30.1]} 16... Nde5 {[%clk
0:01:44.7]} 17. Nxe5 {[%clk 0:02:20.6]} 17... Nxe5 {[%clk 0:01:45.6]} 18. Be3
{[%clk 0:02:20.5]} 18... Nd7 {[%clk 0:01:39.2]} 19. Rxc8+ {[%clk 0:02:13.9]}
19... Rxc8 {[%clk 0:01:38.4]} 20. Rc1 {[%clk 0:02:14.8]} 20... Rxc1+ {[%clk
0:01:24.7]} 21. Bxc1 {[%clk 0:02:15.7]} 21... Kf8 {[%clk 0:01:17.5]} 22. e4
{[%clk 0:02:14.2]} 22... Bg6 {[%clk 0:00:58.4]} 23. f4 {[%clk 0:02:05.4]} 23...
f6 {[%clk 0:00:32.3]} 24. Be3 {[%clk 0:02:01.6]} 24... Ke8 {[%clk 0:00:30.8]}
25. Kf1 {[%clk 0:01:55.4]} 25... Kd8 {[%clk 0:00:30.7]} 26. Ke2 {[%clk
0:01:55.9]} 26... Kc8 {[%clk 0:00:30.8]} 27. exd5 {[%clk 0:01:55.2]} 27... exd5
{[%clk 0:00:31]} 28. Bxd5 {[%clk 0:01:56.1]} 28... Nb8 {[%clk 0:00:27.7]} 29.
Be6+ {[%clk 0:01:51.8]} 29... Kd8 {[%clk 0:00:23.9]} 30. Bxb6+ {[%clk
0:01:51.3]} 30... Ke8 {[%clk 0:00:23.3]} 31. Nc7+ {[%clk 0:01:44.8]} 31... Kf8
{[%clk 0:00:22.9]} 32. f5 {[%clk 0:01:44]} 32... Bh5+ {[%clk 0:00:20.7]} 33. Ke3
{[%clk 0:01:43.3]} 33... Nc6 {[%clk 0:00:19.8]} 34. d4 {[%clk 0:01:42.8]} 34...
Nd8 {[%clk 0:00:18.5]} 35. Nd5 {[%clk 0:01:39.7]} 35... Bg4 {[%clk 0:00:17.6]}
36. Bc8 {[%clk 0:01:34.5]} 36... Ke8 {[%clk 0:00:14.1]} 37. Nxe7 {[%clk
0:01:33.7]} 37... Kxe7 {[%clk 0:00:13.5]} 38. Bc5+ {[%clk 0:01:34.6]} 38... Kf7
{[%clk 0:00:13.8]} 39. Kf4 {[%clk 0:01:35.2]} 39... Bh3 {[%clk 0:00:13.4]} 40.
b5 {[%clk 0:01:31.1]} 40... Ke8 {[%clk 0:00:12.1]} 41. Bb6 {[%clk 0:01:27.1]}
41... Nf7 {[%clk 0:00:10.8]} 42. Bc7 {[%clk 0:01:25.3]} 42... Bg2 {[%clk
0:00:08.3]} 43. a4 {[%clk 0:01:25.7]} 43... Ng5 {[%clk 0:00:08]} 44. a5 {[%clk
0:01:24.5]} 44... Nh3+ {[%clk 0:00:07.5]} 45. Ke3 {[%clk 0:01:24.3]} 1-0

[Event "*** Titled Tuesday Blitz"]
[Site "Chess.com"]
[Date "2021.04.06"]
[Round "8"]
[White "mamonika"]
[Black "campomania3"]
[Result "1-0"]
[WhiteElo "2049"]
[BlackElo "2204"]
[TimeControl "180+1"]
[EndTime "11:28:28 PDT"]
[Termination "mamonika won by resignation"]

1. e4 {[%clk 0:03:00.9]} 1... d5 {[%clk 0:02:59.9]} 2. exd5 {[%clk 0:02:59.6]}
2... Nf6 {[%clk 0:03:00.4]} 3. d4 {[%clk 0:02:59.2]} 3... Nxd5 {[%clk
0:03:00.9]} 4. Nf3 {[%clk 0:02:52.9]} 4... g6 {[%clk 0:03:00.4]} 5. c4 {[%clk
0:02:43.9]} 5... Nb6 {[%clk 0:03:00.1]} 6. Be3 {[%clk 0:02:35.2]} 6... Bg7
{[%clk 0:03:00.4]} 7. Nc3 {[%clk 0:02:06.7]} 7... O-O {[%clk 0:03:00]} 8. h3
{[%clk 0:02:05.7]} 8... Nc6 {[%clk 0:03:00.1]} 9. d5 {[%clk 0:02:01.4]} 9... Ne5
{[%clk 0:02:55.3]} 10. Nxe5 {[%clk 0:01:58.2]} 10... Bxe5 {[%clk 0:02:54.6]} 11.
Bd4 {[%clk 0:01:58.3]} 11... Bxd4 {[%clk 0:02:49.8]} 12. Qxd4 {[%clk 0:01:58.3]}
12... e6 {[%clk 0:02:50.1]} 13. Rd1 {[%clk 0:01:53.8]} 13... exd5 {[%clk
0:02:48.1]} 14. c5 {[%clk 0:01:50.6]} 14... Re8+ {[%clk 0:02:40.6]} 15. Be2
{[%clk 0:01:50.6]} 15... Nd7 {[%clk 0:02:14.7]} 16. Nxd5 {[%clk 0:01:46.2]}
16... c6 {[%clk 0:02:00.2]} 17. Ne3 {[%clk 0:01:45.8]} 17... Qe7 {[%clk
0:01:56.8]} 18. b4 {[%clk 0:01:35.2]} 18... a5 {[%clk 0:01:55.8]} 19. a3 {[%clk
0:01:34.5]} 19... axb4 {[%clk 0:01:53.9]} 20. axb4 {[%clk 0:01:34.8]} 20... Ra2
{[%clk 0:00:53.8]} 21. Bc4 {[%clk 0:01:31.1]} 21... Ra4 {[%clk 0:00:53.4]} 22.
O-O {[%clk 0:01:30.3]} 22... b5 {[%clk 0:00:36.9]} 23. Bb3 {[%clk 0:01:23.7]}
23... Ra3 {[%clk 0:00:31.9]} 24. Qc3 {[%clk 0:01:20.1]} 24... Ra7 {[%clk
0:00:26.4]} 25. Ng4 {[%clk 0:01:14.4]} 25... h5 {[%clk 0:00:18.8]} 26. Rfe1
{[%clk 0:01:13.3]} 26... Qf8 {[%clk 0:00:15.8]} 27. Rxe8 {[%clk 0:01:04.3]}
27... Qxe8 {[%clk 0:00:14]} 28. Rxd7 {[%clk 0:00:59.4]} 28... hxg4 {[%clk
0:00:08.2]} 29. Bxf7+ {[%clk 0:00:54.5]} 29... Qxf7 {[%clk 0:00:05.9]} 30. Rd8+
{[%clk 0:00:50.4]} 30... Qf8 {[%clk 0:00:03.8]} 31. Rxf8+ {[%clk 0:00:49.8]}
31... Kxf8 {[%clk 0:00:04]} 32. Qh8+ {[%clk 0:00:50.6]} 32... Ke7 {[%clk
0:00:03.2]} 33. Qg7+ {[%clk 0:00:51]} 33... Ke6 {[%clk 0:00:03.5]} 34. Qxa7
{[%clk 0:00:51.1]} 1-0

[Event "*** Titled Tuesday Blitz"]
[Site "Chess.com"]
[Date "2021.04.06"]
[Round "8"]
[White "kubal123"]
[Black "chessdiamant"]
[Result "0-1"]
[WhiteElo "2237"]
[BlackElo "2399"]
[TimeControl "180+1"]
[EndTime "11:28:30 PDT"]
[Termination "chessdiamant won by checkmate"]

1. e4 {[%clk 0:03:00.9]} 1... c5 {[%clk 0:02:57.8]} 2. Nf3 {[%clk 0:03:00.8]}
2... Nc6 {[%clk 0:02:57.6]} 3. d4 {[%clk 0:03:01.3]} 3... cxd4 {[%clk
0:02:58.5]} 4. Nxd4 {[%clk 0:03:01.1]} 4... e5 {[%clk 0:02:58.6]} 5. Nb5 {[%clk
0:03:00.9]} 5... d6 {[%clk 0:02:57.7]} 6. N1c3 {[%clk 0:03:00.7]} 6... a6 {[%clk
0:02:57.8]} 7. Na3 {[%clk 0:03:01.3]} 7... b5 {[%clk 0:02:58.7]} 8. Nd5 {[%clk
0:03:01.7]} 8... Nge7 {[%clk 0:02:57.4]} 9. c4 {[%clk 0:03:02]} 9... Nd4 {[%clk
0:02:55.2]} 10. cxb5 {[%clk 0:02:59.2]} 10... Nxd5 {[%clk 0:02:54.4]} 11. exd5
{[%clk 0:02:59.8]} 11... Bd7 {[%clk 0:02:54.7]} 12. bxa6 {[%clk 0:02:55.2]}
12... Qa5+ {[%clk 0:02:54.1]} 13. Bd2 {[%clk 0:02:55.6]} 13... Qxd5 {[%clk
0:02:54.2]} 14. Be3 {[%clk 0:02:42.5]} 14... Qe4 {[%clk 0:02:52.4]} 15. Qb1
{[%clk 0:02:23.7]} 15... d5 {[%clk 0:02:47]} 16. Qxe4 {[%clk 0:02:21.8]} 16...
dxe4 {[%clk 0:02:47.9]} 17. O-O-O {[%clk 0:01:52.6]} 17... Bxa3 {[%clk
0:02:45.5]} 18. bxa3 {[%clk 0:01:45.2]} 18... O-O {[%clk 0:02:40.2]} 19. Bxd4
{[%clk 0:01:45.1]} 19... exd4 {[%clk 0:02:39.8]} 20. Rxd4 {[%clk 0:01:44.8]}
20... Rfc8+ {[%clk 0:02:22.6]} 21. Kd2 {[%clk 0:01:42.6]} 21... Be6 {[%clk
0:02:14.9]} 22. Bb5 {[%clk 0:01:27.3]} 22... Rc5 {[%clk 0:02:07.8]} 23. a4
{[%clk 0:01:22.5]} 23... Rac8 {[%clk 0:01:55.2]} 24. Rxe4 {[%clk 0:01:21.7]}
24... Rc2+ {[%clk 0:01:54.1]} 25. Ke3 {[%clk 0:01:19.3]} 25... Rxa2 {[%clk
0:01:43.5]} 26. Rd1 {[%clk 0:01:14.4]} 26... g5 {[%clk 0:01:19.3]} 27. Red4
{[%clk 0:01:02.9]} 27... Rc3+ {[%clk 0:00:48.8]} 28. R1d3 {[%clk 0:01:00.5]}
28... Rcc2 {[%clk 0:00:47.3]} 29. Rd8+ {[%clk 0:00:59.3]} 29... Kg7 {[%clk
0:00:46.5]} 30. a7 {[%clk 0:00:57.8]} 30... Re2+ {[%clk 0:00:15.7]} 31. Kd4
{[%clk 0:00:57.9]} 31... Rac2 {[%clk 0:00:15.6]} 32. a8=Q {[%clk 0:00:51.8]}
32... f5 {[%clk 0:00:14.5]} 33. Qa7+ {[%clk 0:00:49.5]} 33... Kh6 {[%clk
0:00:13.8]} 34. Rd7 {[%clk 0:00:44.1]} 34... Re4# {[%clk 0:00:13.4]} 0-1